fUST/lending_fUST_20251112
["ID","MTS","AMOUNT","RATE_DAILY","PERIOD"]
[393661346,1762891841244,-1500.0,0.00020668,2]
[393661347,1762891841255,-1500.0,0.00020668,2]
[393661348,1762891841265,-1500.0,0.00020668,2]
[393661349,1762891841275,-505.08760734,0.00020668,2]
[393661350,1762891841284,-1500.0,0.00020668,2]
[393661351,1762891841294,-1500.0,0.00020668,2]
[393661352,1762891841304,-500.0,0.00020683,2]
[393661353,1762891841314,-500.0,0.00020683,2]
[393661354,1762891841324,-876.22433785,0.00020684,2]
[393661355,1762891841334,-1500.0,0.00020692,2]
[393661356,1762891841344,-500.0,0.00020694,2]
[393661357,1762891841354,-500.0,0.0002078,2]
[393661358,1762891841364,-500.0,0.0002078,2]
[393661359,1762891841373,-500.0,0.00020821,2]
[393661360,1762891841383,-466.04735602,0.00020822,2]
[393661361,1762891841393,-313.0,0.00020899,2]
[393661362,1762891841402,-500.0,0.00020968,2]
[393661363,1762891841412,-500.0,0.00020972,2]
[393661364,1762891841422,-500.0,0.00020972,2]
[393661365,1762891841432,-500.0,0.00020973,2]
[393661366,1762891841442,-507.2444408,0.00020973,2]
[393661367,1762891841452,-500.0,0.00020973,2]
[393661368,1762891841462,-500.0,0.00020973,2]
[393661369,1762891841472,-500.9181771,0.00020973,2]
[393661370,1762891841482,-281.44305346,0.00020973,2]
[393661371,1762891841492,-500.0,0.00020973,2]
[393661372,1762891841502,-505.18612198,0.00020973,2]
[393661373,1762891841512,-500.0,0.00020973,2]
[393661374,1762891841522,-500.0,0.00020973,2]
[393661375,1762891841532,-500.0,0.00020973,2]
[393661376,1762891841542,-500.0,0.00020973,2]
[393661377,1762891841552,-500.0,0.00020973,2]
[393661378,1762891841562,-500.0,0.00020973,2]
[393661379,1762891841571,-500.0,0.00020973,2]
[393661380,1762891841581,-500.0,0.00020993,2]
[393661381,1762891841591,-500.0,0.00020993,2]
[393661382,1762891841601,-500.0,0.00020993,2]
[393661383,1762891841612,-500.0,0.00020993,2]
[393661384,1762891841622,-500.0,0.00020993,2]
[393661385,1762891841632,-604.12449972,0.00020993,2]
[393661386,1762891841642,-388.0,0.00021123,2]
[393661387,1762891841652,-500.0,0.00021216,2]
[393661388,1762891841662,-2000.0,0.00021216,2]
[393661389,1762891841672,-2000.0,0.00021216,2]
[393661390,1762891841682,-2000.0,0.00021216,2]
[393661391,1762891841693,-1641.7621891,0.00021216,2]
[393661392,1762891841703,-2000.0,0.00021216,2]
[393661393,1762891841714,-1497.70121405,0.00021216,2]
[393661394,1762891841727,-2000.0,0.00021216,2]
[393661395,1762891841736,-1141.84819539,0.00021216,2]
[393661396,1762891841746,-2000.0,0.00021216,2]
[393661397,1762891841757,-2000.0,0.00021216,2]
[393661398,1762891841768,-500.0,0.00021242,2]
[393661399,1762891841779,-500.0,0.00021266,2]
[393661400,1762891841790,-500.0,0.00021266,2]
[393661401,1762891841801,-1680.0,0.00021321,2]
[393661402,1762891841812,-856.2167932,0.00021328,2]
[393661403,1762891841823,-1000.0,0.00021328,2]
[393661404,1762891841832,-500.0,0.00021373,2]
[393661405,1762891841948,-1680.0,0.00021422,2]
[393661406,1762891841959,-500.0,0.00021422,2]
[393661407,1762891841969,-500.0,0.00021432,2]
[393661408,1762891841978,-500.0,0.00021433,2]
[393661409,1762891841989,-500.0,0.00021433,2]
[393661410,1762891842001,-500.0,0.00021433,2]
[393661411,1762891842012,-500.0,0.00021433,2]
[393661412,1762891842023,-500.0,0.00021433,2]
[393661413,1762891842032,-500.0,0.00021433,2]
[393661414,1762891842042,-500.0,0.00021433,2]
[393661415,1762891842052,-544.70370848,0.00021433,2]
[393661416,1762891842063,-504.92,0.00021433,2]
[393661417,1762891842073,-504.92,0.00021433,2]
[393661418,1762891842084,-504.92,0.00021433,2]
[393661419,1762891842095,-500.0,0.00021433,2]
[393661420,1762891842105,-500.0,0.00021433,2]
[393661421,1762891842117,-500.0,0.00021433,2]
[393661422,1762891842127,-500.0,0.00021433,2]
[393661423,1762891842136,-500.0,0.00021433,2]
[393661424,1762891842146,-500.0,0.00021433,2]
[393661425,1762891842155,-500.0,0.00021472,2]
[393661426,1762891842164,-500.0,0.00021472,2]
[393661427,1762891842173,-500.0,0.00021472,2]
[393661428,1762891842182,-504.92,0.00021472,2]
[393661429,1762891842193,-500.0,0.00021472,2]
[393661430,1762891842203,-177.68397295,0.00021472,2]
[393661431,1762891842212,-500.0,0.00021473,2]
[393661432,1762891842222,-500.0,0.00021473,2]
[393661433,1762891842231,-500.0,0.00021473,2]
[393661434,1762891842241,-505.95465112,0.00021473,2]
[393661435,1762891842251,-506.24072444,0.00021473,2]
[393661436,1762891842260,-452.9110932,0.00021473,2]
[393661437,1762891842270,-172.21336652,0.00021473,2]
[393661438,1762891842279,-501.3892531,0.00021473,2]
[393661439,1762891842289,-501.5332089,0.00021473,2]
[393661440,1762891842299,-520.67360796,0.00021477,2]
[393661441,1762891842308,-500.55007715,0.00021477,2]
[393661442,1762891842317,-402.74769286,0.00021477,2]
[393661443,1762891842326,-500.69684485,0.00021477,2]
[393661444,1762891842335,-500.0,0.00021477,2]
[393661445,1762891842345,-622.37700586,0.00021477,2]
[393661446,1762891842354,-165.15876314,0.00021477,2]
[393661447,1762891842364,-499.28,0.00021481,3]
[393661448,1762891842375,-160.0,0.0002151,2]
[393661449,1762891842384,-500.0,0.00021516,2]
[393661450,1762891842393,-500.0,0.0002152,2]
[393661451,1762891842403,-271.64843923,0.0002152,2]
[393661452,1762891842413,-918.90842413,0.00021521,2]
[393661453,1762891842422,-1000.0,0.00021521,2]
[393661454,1762891842431,-391.33761395,0.00021521,2]
[393661455,1762891842440,-502.71859211,0.00021521,2]
[393661456,1762891842449,-503.19168683,0.00021521,2]
[393661457,1762891842459,-487.97674061,0.00021521,2]
[393661458,1762891842468,-500.0,0.00021603,2]
[393661459,1762891842478,-277.21903148,0.00021604,2]
[393661460,1762891842488,-2500.0,0.00021764,2]
[393661461,1762891842498,-2500.0,0.00021764,2]
[393661462,1762891842508,-523.17483354,0.00021764,2]
[393661463,1762891842517,-2500.0,0.00021764,2]
[393661464,1762891842526,-2500.0,0.00021764,2]
[393661465,1762891842536,-1689.36557748,0.00021764,2]
[393661466,1762891842546,-2500.0,0.00021764,2]
[393661467,1762891842556,-1099.65999162,0.00021788,2]
[393661468,1762891842566,-500.0,0.0002179,2]
[393661469,1762891842575,-1500.0,0.00021876,2]
[393661470,1762891842585,-500.0,0.00021917,2]
[393661471,1762891842595,-1002.65858154,0.00021921,2]
[393661472,1762891842605,-250.05409004,0.0002197,2]
[393661473,1762891842614,-47736.73909396,0.0002199,2]
[393661474,1762891842624,-1521.71,0.00022,7]
[393661475,1762891842633,-35491.03,0.00022,7]
[393661476,1762891842643,-500.0,0.00022019,2]
[393661477,1762891842652,-500.0,0.0002202,2]
[393661478,1762891842661,-500.0,0.0002202,2]
[393661479,1762891842671,-504.92,0.0002202,2]
[393661480,1762891842681,-500.0,0.0002202,2]
[393661481,1762891842691,-1465.67,0.0002202,2]
[393661482,1762891842700,-1465.67,0.0002202,2]
[393661483,1762891842710,-1465.67,0.0002202,2]
[393661484,1762891842719,-1465.67,0.0002202,2]
[393661485,1762891842728,-1465.67,0.0002202,2]
[393661486,1762891842738,-417.99981792,0.00022021,2]
[393661487,1762891842747,-455.03075088,0.00022021,2]
[393661488,1762891842757,-525.56,0.00022028,3]
[393661489,1762891842767,-998.54,0.00022028,3]
[393661490,1762891842777,-260.0,0.00022057,2]
[393661491,1762891842787,-500.0,0.00022064,2]
[393661492,1762891842796,-1500.0,0.00022068,2]
[393661493,1762891842806,-500.0,0.00022072,2]
[393661494,1762891842816,-500.0,0.00022073,2]
[393661495,1762891842827,-151.0,0.00022221,7]
[393661496,1762891842836,-3000.0,0.00022312,2]
[393661497,1762891842847,-3000.0,0.00022312,2]
[393661498,1762891842858,-3000.0,0.00022312,2]
[393661499,1762891842870,-878.87567137,0.00022312,2]
[393661500,1762891842879,-3000.0,0.00022312,2]
[393661501,1762891842889,-500.0,0.00022338,2]
[393661502,1762891842899,-2000.0,0.00022424,2]
[393661503,1762891842910,-500.0,0.00022437,2]
[393661504,1762891842919,-204.0,0.00022497,2]
[393661505,1762891842929,-500.0,0.00022568,2]
[393661506,1762891842940,-360.0,0.00022605,2]
[393661507,1762891842950,-367.2825117,0.00022612,2]
[393661508,1762891842960,-500.0,0.00022616,2]
[393661509,1762891842970,-2000.0,0.00022616,2]
[393661510,1762891842980,-1000.0,0.00022621,2]
[393661511,1762891842991,-1500.0,0.0002286,2]
[393661512,1762891843001,-1000.0,0.0002286,2]
[393661513,1762891843011,-1000.0,0.0002286,2]
[393661514,1762891843021,-3500.0,0.0002286,2]
[393661515,1762891843030,-876.22433785,0.00022872,2]
[393661516,1762891843039,-1527.10695619,0.00022972,2]
[393661517,1762891843049,-500.0,0.00023013,2]
[393661519,1762891843060,-171.88466099,0.00023116,2]
[393661520,1762891843069,-500.0,0.00023116,2]
[393661521,1762891843078,-504.92,0.00023116,2]
[393661522,1762891843088,-500.0,0.00023116,2]
[393661524,1762891843098,-1465.67,0.00023116,2]
[393661526,1762891843107,-460.0,0.00023153,2]
[393661528,1762891843117,-500.0,0.00023164,2]
[393661530,1762891843126,-778.05206849,0.00023164,2]
[393661532,1762891843135,-1500.0,0.00023168,2]
[393661534,1762891843145,-705.0,0.00023226,2]
[393661536,1762891843156,-2500.0,0.00023408,2]
[393661538,1762891843166,-2351.0,0.00023449,2]
[393661540,1762891843175,-620.85571295,0.00023664,2]
[393661542,1762891843184,-504.92,0.00023664,2]
[393661543,1762891843194,-500.0,0.00023664,2]
[393661544,1762891843203,-1465.67,0.00023664,2]
[393661545,1762891843213,-380.0,0.00023701,2]
[393661546,1762891843222,-277.21903148,0.00023704,2]
[393661547,1762891843231,-500.0,0.00023712,2]
[393661548,1762891843240,-2000.0,0.00023716,2]
[393661549,1762891843250,-500.0,0.00023799,2]
[393661551,1762891843259,-500.0,0.00023799,2]
[393661552,1762891843268,-500.0,0.00023799,2]
[393661554,1762891843278,-500.0,0.00023989,2]
[393661555,1762891843287,-500.0,0.00023989,2]
[393661556,1762891843297,-500.0,0.00023989,2]
[393661557,1762891843308,-500.0,0.00023989,2]
[393661558,1762891843318,-500.0,0.00023999,2]
[393661559,1762891843329,-2979.0,0.00024,2]
[393661561,1762891843338,-2000.0,0.00024264,2]
[393661563,1762891843347,-231.0,0.00024498,2]
[393661565,1762891843357,-504.92,0.0002476,2]
[393661566,1762891843367,-500.0,0.0002476,2]
[393661567,1762891843377,-1465.67,0.0002476,2]
[393661568,1762891843387,-500.0,0.00024799,2]
[393661569,1762891843396,-903.55837905,0.000248,2]
[393661570,1762891843405,-1521.71,0.000248,7]
[393661571,1762891843414,-180.71167581,0.0002488,2]
[393661572,1762891843424,-180.71167581,0.00024889,2]
[393661573,1762891843434,-500.0,0.00024889,2]
[393661574,1762891843445,-500.0,0.00024889,2]
[393661575,1762891843454,-500.0,0.00024889,2]
[393661576,1762891843465,-500.0,0.00024889,2]
[393661577,1762891843474,-504.92,0.00024899,2]
[393661578,1762891843484,-504.92,0.00024899,2]
[393661579,1762891843494,-504.92,0.00024899,2]
[393661580,1762891843503,-504.92,0.00024899,2]
[393661581,1762891843513,-504.92,0.00024899,2]
[393661582,1762891843523,-504.92,0.00024899,2]
[393661583,1762891843533,-504.92,0.00024899,2]
[393661584,1762891843543,-504.92,0.00024899,2]
[393661585,1762891843552,-504.92,0.00024899,2]
[393661586,1762891843562,-504.92,0.00024899,2]
[393661587,1762891843573,-504.92,0.00024899,2]
[393661588,1762891843583,-504.92,0.00024899,2]
[393661589,1762891843593,-504.92,0.00024899,2]
[393661591,1762891843603,-504.92,0.00024899,2]
[393661593,1762891843612,-504.92,0.00024899,2]
[393661595,1762891843623,-504.97025299,0.00024899,2]
[393661597,1762891843632,-500.0,0.00024899,2]
[393661599,1762891843642,-500.0,0.00024899,2]
[393661601,1762891843651,-500.0,0.00024899,2]
[393661603,1762891843660,-500.0,0.00024899,2]
[393661605,1762891843670,-500.0,0.00024899,2]
[393661606,1762891843689,-514.40730907,0.00024899,2]
[393661609,1762891843699,-1465.67,0.00024899,2]
[393661610,1762891843709,-1465.67,0.00024899,2]
[393661612,1762891843719,-1465.67,0.00024899,2]
[393661614,1762891843729,-1465.67,0.00024899,2]
[393661617,1762891843739,-1465.67,0.00024899,2]
[393661618,1762891843748,-1465.67,0.00024899,2]
[393661621,1762891843758,-1465.67,0.00024899,2]
[393661622,1762891843768,-1465.67,0.00024899,2]
[393661625,1762891843778,-1465.67,0.00024899,2]
[393661627,1762891843788,-1465.67,0.00024899,2]
[393661629,1762891843797,-1465.67,0.00024899,2]
[393661631,1762891843807,-1465.67,0.00024899,2]
[393661632,1762891843816,-1465.67,0.00024899,2]
[393661635,1762891843826,-1465.67,0.00024899,2]
[393661636,1762891843837,-1465.67,0.00024899,2]
[393661639,1762891843850,-1465.77905666,0.00024899,2]
[393661641,1762891843860,-171.99,0.000249,14]
[393661643,1762891843870,-814121.393545,0.000249,2]
[393661645,1762891843880,-35491.03,0.000249,7]
[393661647,1762891843891,-151.0,0.000249,7]
[393661648,1762891843900,-877.10056219,0.00025061,2]
[393661649,1762891843911,-519.96,0.00025229,2]
[393661650,1762891843920,-151.0,0.00025633,7]
[393661651,1762891843933,-168.0,0.00025666,2]
[393661652,1762891843944,-582.0,0.00025668,2]
[393661653,1762891843954,-277.49625051,0.00025803,2]
[393661654,1762891843964,-168.0,0.0002585,2]
[393661655,1762891843974,-168.0,0.00025888,2]
[393661656,1762891843984,-168.0,0.00026218,2]
[393661657,1762891843995,-168.0,0.00026237,2]
[393661658,1762891844004,-168.0,0.00026473,2]
[393661659,1762891844014,-258.0,0.00026498,2]
[393661660,1762891844024,-168.0,0.00026505,2]
[393661661,1762891844034,-232.0,0.00026506,7]
[393661662,1762891844044,-168.0,0.00026516,2]
[393661663,1762891844053,-1070.47918523,0.00026595,2]
[393661664,1762891844062,-183.93418737,0.00026695,2]
[393661665,1762891844072,-232.0,0.00026821,2]
[393661666,1762891844082,-168.0,0.00026853,2]
[393661667,1762891844092,-168.0,0.00026938,2]
[393661668,1762891844101,-168.0,0.00027223,2]
[393661669,1762891844110,-168.0,0.00027236,2]
[393661670,1762891844120,-168.0,0.00027381,2]
[393661671,1762891844129,-500.0,0.00027397,2]
[393661672,1762891844139,-201.05367456,0.00027397,5]
[393661673,1762891844149,-150.0,0.00027397,5]
[393661674,1762891844158,-2509.13,0.000274,2]
[393661675,1762891844168,-168.0,0.00027426,2]
[393661676,1762891844177,-500.0,0.00027452,2]
[393661677,1762891844190,-500.0,0.00027507,2]
[393661678,1762891844200,-1039.92,0.00027522,2]
[393661679,1762891844209,-232.0,0.00027541,2]
[393661680,1762891844219,-168.0,0.00027561,2]
[393661681,1762891844228,-168.0,0.00027651,2]
[393661682,1762891844238,-180.71167581,0.0002769,2]
[393661683,1762891844248,-168.0,0.000277,2]
[393661684,1762891844258,-168.0,0.00027733,2]
[393661685,1762891844267,-1521.71,0.000278,7]
[393661686,1762891844277,-168.0,0.00027805,2]
[393661687,1762891844287,-168.0,0.00027928,2]
[393661688,1762891844296,-250.0,0.00027945,5]
[393661689,1762891844306,-165.440569,0.00028,7]
[393661690,1762891844316,-35491.03,0.00028,7]
[393661691,1762891844326,-151.0,0.00028004,7]
[393661692,1762891844336,-168.0,0.00028021,2]
[393661693,1762891844346,-183.93418736,0.0002805,30]
[393661694,1762891844356,-165.440569,0.000281,7]
[393661695,1762891844368,-152.39190376,0.00028148,7]
[393661696,1762891844377,-413.0,0.00028392,2]
[393661697,1762891844387,-4425.0,0.00028392,2]
[393661698,1762891844398,-168.0,0.0002845,2]
[393661699,1762891844410,-228.60188415,0.00028466,14]
[393661700,1762891844421,-350.0,0.00028493,5]
[393661701,1762891844432,-285.0,0.00028498,2]
[393661702,1762891844442,-450.0,0.00029041,5]
[393661703,1762891844452,-550.0,0.00029589,5]
[393661704,1762891844461,-1559.89,0.00029816,2]
[393661705,1762891844471,-516.17089768,0.0003,30]
[393661706,1762891844481,-413.46028319,0.0003,50]
[393661707,1762891844490,-208.0,0.0003011,38]
[393661708,1762891844500,-605.34707481,0.00030137,5]
[393661709,1762891844509,-503.90429807,0.00030306,7]
[393661710,1762891844601,-500.0,0.0003031,7]
[393661711,1762891844611,-430.21035599,0.00030365,7]
[393661712,1762891844621,-312.0,0.00030497,2]
[393661713,1762891844630,-500.0,0.00030533,7]
[393661714,1762891844640,-500.0,0.00030691,7]
[393661715,1762891844650,-2509.13,0.000307,2]
[393661716,1762891844659,-500.0,0.00031173,7]
[393661717,1762891844668,-500.0,0.0003126,7]
[393661718,1762891844678,-413.0,0.00031392,2]
[393661719,1762891844688,-547.39290109,0.00031658,2]
[393661720,1762891844698,-510.3098475,0.00031686,7]
[393661721,1762891844708,-1521.71,0.000317,7]
[393661722,1762891844718,-500.0,0.00031714,7]
[393661723,1762891844727,-503.98643739,0.00031727,7]
[393661724,1762891844737,-500.0,0.00031903,7]
[393661725,1762891844747,-222.84,0.00031964,30]
[393661726,1762891844757,-668.00691405,0.00032023,7]
[393661727,1762891844767,-904.63926808,0.00032026,7]
[393661728,1762891844777,-35491.03,0.000321,7]
[393661729,1762891844787,-2079.85,0.00032109,2]
[393661730,1762891844796,-159.0,0.00032301,52]
[393661731,1762891844806,-339.0,0.00032498,2]
[393661732,1762891844815,-994.27,0.00032877,10]
[393661733,1762891844826,-207.45229694,0.000329,120]
[393661734,1762891844836,-599.52617266,0.000329,120]
[393661735,1762891844846,-174.47086326,0.000329,120]
[393661736,1762891844857,-312.30864655,0.000329,120]
[393661737,1762891844868,-177.88852594,0.000329,120]
[393661738,1762891844878,-186.50777452,0.000329,120]
[393661739,1762891844888,-161.24859624,0.000329,120]
[393661740,1762891844898,-199.84205756,0.000329,120]
[393661741,1762891844908,-195.03703662,0.000329,120]
[393661742,1762891844917,-184.67994437,0.000329,120]
[393661743,1762891844926,-195.93429974,0.000329,120]
[393661744,1762891844939,-1467.73230227,0.000329,120]
[393661745,1762891844950,-305.92,0.0003315,14]
[393661746,1762891844959,-305.92,0.00033698,15]
[393661747,1762891844969,-504.6968516,0.00033725,5]
[393661748,1762891844979,-345.68770136,0.00033725,5]
[393661749,1762891844989,-180.71167581,0.0003379,2]
[393661750,1762891844998,-150.04,0.00033796,60]
[393661751,1762891845007,-150.04,0.00033896,60]
[393661752,1762891845017,-599.52617266,0.000339,120]
[393661753,1762891845027,-174.47086326,0.000339,120]
[393661754,1762891845037,-312.30864655,0.000339,120]
[393661755,1762891845046,-177.88852594,0.000339,120]
[393661756,1762891845056,-186.50777452,0.000339,120]
[393661757,1762891845065,-161.24859624,0.000339,120]
[393661758,1762891845075,-199.84205756,0.000339,120]
[393661759,1762891845084,-195.03703662,0.000339,120]
[393661760,1762891845094,-184.67994437,0.000339,120]
[393661761,1762891845103,-195.93429974,0.000339,120]
[393661762,1762891845114,-1467.73230227,0.000339,120]
[393661763,1762891845123,-920.61,0.00033911,60]
[393661764,1762891845133,-150.04,0.00033996,60]
[393661765,1762891845143,-920.61,0.00034011,60]
[393661766,1762891845152,-150.04,0.00034096,60]
[393661767,1762891845163,-920.61,0.00034111,60]
[393661768,1762891845174,-150.04,0.00034196,60]
[393661769,1762891845184,-920.61,0.00034211,60]
[393661770,1762891845196,-305.92,0.00034246,16]
[393661771,1762891845205,-1000.0,0.00034247,5]
[393661772,1762891845215,-150.04,0.00034296,60]
[393661773,1762891845224,-920.61,0.00034311,60]
[393661774,1762891845235,-413.0,0.00034392,2]
[393661775,1762891845245,-150.04,0.00034396,60]
[393661776,1762891845255,-2599.81,0.00034403,2]
[393661777,1762891845265,-920.62,0.00034411,60]
[393661778,1762891845274,-172.0,0.00034493,69]
[393661779,1762891845284,-150.04,0.00034496,60]
[393661780,1762891845294,-366.0,0.00034497,120]
[393661781,1762891845305,-2509.13,0.000345,14]
[393661782,1762891845315,-500.70711121,0.00034573,5]
[393661783,1762891845324,-150.04,0.00034596,60]
[393661784,1762891845334,-1521.71,0.000346,7]
[393661785,1762891845344,-150.04,0.00034696,60]
[393661786,1762891845354,-305.92,0.00034794,17]
[393661787,1762891845364,-150.04,0.00034796,60]
[393661788,1762891845374,-445.68,0.00034869,30]
[393661789,1762891845383,-150.04,0.00034896,60]
[393661790,1762891845393,-599.52617266,0.000349,120]
[393661791,1762891845402,-174.47086326,0.000349,120]
[393661792,1762891845415,-312.30864655,0.000349,120]
[393661793,1762891845426,-177.88852594,0.000349,120]
[393661794,1762891845435,-161.24859624,0.000349,120]
[393661795,1762891845446,-199.84205756,0.000349,120]
[393661796,1762891845456,-184.67994437,0.000349,120]
[393661797,1762891845466,-195.93429974,0.000349,120]
[393661798,1762891845476,-1467.73230227,0.000349,120]
[393661799,1762891845486,-150.04,0.00034996,60]
[393661800,1762891845496,-501.45914862,0.00035,7]
[393661801,1762891845506,-156.0,0.00035,120]
[393661802,1762891845516,-35491.03,0.00035,14]
[393661803,1762891845526,-999.0,0.00035068,120]
[393661804,1762891845535,-150.04,0.00035096,60]
[393661805,1762891845545,-190.296293,0.00035168,60]
[393661806,1762891845555,-150.04,0.00035196,60]
[393661807,1762891845565,-180.71167581,0.0003529,3]
[393661808,1762891845575,-150.04,0.00035296,60]
[393661809,1762891845584,-305.92,0.00035342,18]
[393661810,1762891845594,-150.04,0.00035396,60]
[393661811,1762891845604,-150.04,0.00035496,60]
[393661812,1762891845613,-302.0,0.00035535,2]
[393661813,1762891845624,-150.04,0.00035596,60]
[393661814,1762891845634,-500.0,0.00035616,90]
[393661815,1762891845644,-228.3716463,0.00035616,2]
[393661816,1762891845655,-302.0,0.00035664,2]
[393661817,1762891845665,-302.0,0.00035664,2]
[393661818,1762891845675,-500.0,0.00035671,90]
[393661819,1762891845685,-150.04,0.00035696,60]
[393661820,1762891845696,-500.0,0.00035726,90]
[393661821,1762891845706,-500.0,0.0003578,90]
[393661822,1762891845718,-150.04,0.00035796,60]
[393661823,1762891845727,-305.92,0.0003589,19]
[393661824,1762891845737,-150.04,0.00035896,60]
[393661825,1762891845747,-599.52617266,0.000359,120]
[393661826,1762891845757,-174.47086326,0.000359,120]
[393661827,1762891845766,-312.30864655,0.000359,120]
[393661828,1762891845775,-177.88852594,0.000359,120]
[393661829,1762891845785,-161.24859624,0.000359,120]
[393661830,1762891845795,-199.84205756,0.000359,120]
[393661831,1762891845804,-1467.73230227,0.000359,120]
[393661832,1762891845814,-150.04,0.00035996,60]
[393661833,1762891845823,-150.04,0.00036096,60]
[393661834,1762891845834,-999.0,0.00036164,120]
[393661835,1762891845844,-150.04,0.00036196,60]
[393661836,1762891845858,-150.04,0.00036296,60]
[393661837,1762891845868,-150.04,0.00036396,60]
[393661838,1762891845878,-305.92,0.00036438,20]
[393661839,1762891845891,-302.66710253,0.0003648,38]
[393661840,1762891845901,-150.04,0.00036496,60]
[393661841,1762891845911,-393.0,0.00036498,120]
[393661842,1762891845921,-2841.289597,0.000365,15]
[393661843,1762891845931,-2509.13,0.000365,14]
[393661844,1762891845943,-1521.71,0.000365,7]
[393661845,1762891845954,-180.71167581,0.0003659,3]
[393661846,1762891845963,-150.04,0.00036596,60]
[393661847,1762891845972,-2000.0,0.000366,18]
[393661848,1762891845982,-150.0,0.000366,10]
[393661849,1762891845992,-165.440569,0.0003661,30]
[393661850,1762891846003,-150.0,0.00036664,2]
[393661851,1762891846012,-250.0,0.00036664,10]
[393661852,1762891846023,-250.0,0.00036664,10]
[393661853,1762891846033,-250.0,0.00036664,10]
[393661854,1762891846043,-150.04,0.00036696,60]
[393661855,1762891846053,-3119.77,0.00036696,2]
[393661856,1762891846062,-150.04,0.00036796,60]
[393661857,1762891846072,-150.04,0.00036896,60]
[393661858,1762891846082,-309.1159912,0.00036952,3]
[393661859,1762891846092,-305.92,0.00036986,21]
[393661860,1762891846103,-150.04,0.00036996,60]
[393661861,1762891846112,-599.52617266,0.00037,120]
[393661862,1762891846123,-312.30864655,0.00037,120]
[393661863,1762891846133,-1467.73230227,0.00037,120]
[393661864,1762891846144,-35491.03,0.00037,14]
[393661865,1762891846155,-150.04,0.00037096,60]
[393661866,1762891846166,-156.0,0.000371,120]
[393661867,1762891846176,-290.0,0.00037119,5]
[393661868,1762891846187,-213.88400791,0.00037131,120]
[393661869,1762891846198,-150.04,0.00037196,60]
[393661870,1762891846209,-999.0,0.0003726,120]
[393661871,1762891846221,-150.04,0.00037296,60]
[393661872,1762891846231,-682.47599593,0.00037376,2]
[393661873,1762891846242,-413.0,0.00037392,2]
[393661874,1762891846253,-150.04,0.00037396,60]
[393661875,1762891846263,-150.04,0.00037496,60]
[393661876,1762891846274,-985.30722196,0.00037505,2]
[393661877,1762891846285,-305.92,0.00037534,22]
[393661878,1762891846295,-150.04,0.00037596,60]
[393661879,1762891846305,-2000.0,0.000376,20]
[393661880,1762891846315,-200.0,0.00037665,120]
[393661881,1762891846325,-150.04,0.00037696,60]
[393661882,1762891846335,-263.08287024,0.000377,19]
[393661883,1762891846345,-181.14982919,0.00037751,2]
[393661884,1762891846355,-1444.0,0.00037753,120]
[393661885,1762891846366,-668.52,0.00037775,30]
[393661887,1762891846376,-156.0,0.00037781,104]
[393661890,1762891846386,-150.04,0.00037796,60]
[393661892,1762891846396,-12207.78724864,0.00037796,2]
[393661896,1762891846406,-151.0,0.00037842,31]
[393661897,1762891846415,-151.0,0.00037842,15]